{"text_format":"1","workbook":"xlsx","n_sheets":1,"sheets":["Sheet1"],"not_rendered":{"charts":0,"images":0,"macros":1,"external_links":0,"defined_names":0,"comments":0,"pivot_tables":0},"unopened":[],"bounds":{"document_bytes":16777216,"sheet_cells":100000,"rows_first":2000,"rows_last":500,"rows_between":2000,"halvings":0,"cell_chars":16384,"cell_head_chars":4096},"cells_cut":0,"cells_raw":0,"read":"whole","date_system":"1900"}

{"sheet":"Sheet1","index":0,"n_rows":54,"n_cols":6,"rows_kept":54,"cut":false,"hidden":false,"merged":[[0,0,0,1],[0,5,0,6]]}
["الطريقة الأولى .. بالمعادلة العادية",null,null,null,null,"الطريقة الثانية.. بالدالة المعرفة ColLtrs"]
["Ser.",null,null,null,null,"Ser."]
[{"$f":"IF(B3<>\"\",\"A\",\"\")","v":"A"},10,null,null,null,{"$f":"ColLtrs(ROW()-2)","v":"A"}]
[{"$f":"IF(A3=\"A\",CHAR(CODE(A3)+1),IF(A3=\"Z\",\"AA\",IF(LEN(A3)=1,CHAR(CODE(A3)+1),IF(RIGHT(A3,1)=\"Z\",CHAR(CODE(LEFT(A3,1))+1),LEFT(A3,1))&CHAR(65+MOD(CODE(RIGHT(A3,1))+1-65,26)))))","v":"B"},null,null,null,null,{"$f":"ColLtrs(ROW()-2)","v":"B"}]
[{"$f":"IF(A4=\"A\",CHAR(CODE(A4)+1),IF(A4=\"Z\",\"AA\",IF(LEN(A4)=1,CHAR(CODE(A4)+1),IF(RIGHT(A4,1)=\"Z\",CHAR(CODE(LEFT(A4,1))+1),LEFT(A4,1))&CHAR(65+MOD(CODE(RIGHT(A4,1))+1-65,26)))))","v":"C"},null,null,null,null,"C"]
["D",null,null,null,null,"D"]
["E",null,null,null,null,"E"]
["F",null,null,null,null,"F"]
["G",null,null,null,null,"G"]
["H",null,null,null,null,"H"]
["I",null,null,null,null,"I"]
["J",null,null,null,null,"J"]
["K",null,null,null,null,"K"]
["L",null,null,null,null,"L"]
["M",null,null,null,null,"M"]
["N",null,null,null,null,"N"]
["O",null,null,null,null,"O"]
["P",null,null,null,null,"P"]
["Q",null,null,null,null,"Q"]
["R",null,null,null,null,"R"]
["S",null,null,null,null,"S"]
["T",null,null,null,null,"T"]
["U",null,null,null,null,"U"]
["V",null,null,null,null,"V"]
["W",null,null,null,null,"W"]
["X",null,null,null,null,"X"]
["Y",null,null,null,null,"Y"]
["Z",null,null,null,null,"Z"]
["AA",null,null,null,null,"AA"]
["AB",null,null,null,null,"AB"]
["AC",null,null,null,null,"AC"]
["AD",null,null,null,null,"AD"]
["AE",null,null,null,null,"AE"]
["AF",null,null,null,null,"AF"]
["AG",null,null,null,null,"AG"]
["AH",null,null,null,null,"AH"]
["AI",null,null,null,null,"AI"]
["AJ",null,null,null,null,"AJ"]
["AK",null,null,null,null,"AK"]
["AL",null,null,null,null,"AL"]
["AM",null,null,null,null,"AM"]
["AN",null,null,null,null,"AN"]
["AO",null,null,null,null,"AO"]
["AP",null,null,null,null,"AP"]
["AQ",null,null,null,null,"AQ"]
["AR",null,null,null,null,"AR"]
["AS",null,null,null,null,"AS"]
["AT",null,null,null,null,"AT"]
["AU",null,null,null,null,"AU"]
["AV",null,null,null,null,"AV"]
["AW",null,null,null,null,"AW"]
["AX",null,null,null,null,"AX"]
["AY",null,null,null,null,"AY"]
["AZ",null,null,null,null,"AZ"]